fUST/lending_fUST_20250127
["ID","MTS","AMOUNT","RATE_DAILY","PERIOD"]
[350528717,1737947447764,-500.0,0.00017122,2]
[350528718,1737947447773,-503.21502653,0.00017122,2]
[350528719,1737947447783,-325.83164315,0.00017122,2]
[350528720,1737947447793,-500.0,0.00017122,2]
[350528721,1737947447802,-500.0,0.00017122,2]
[350528722,1737947447811,-500.0,0.00017122,2]
[350528723,1737947447821,-500.0,0.00017122,2]
[350528724,1737947447831,-505.18790813,0.00017122,2]
[350528725,1737947447840,-500.0,0.00017122,2]
[350528726,1737947447850,-3976.97,0.00017122,2]
[350528727,1737947447860,-500.0,0.00017122,2]
[350528728,1737947447871,-500.0,0.00017122,2]
[350528729,1737947447881,-500.0,0.00017122,2]
[350528730,1737947447890,-500.0,0.00017122,2]
[350528731,1737947447901,-500.0,0.00017122,2]
[350528732,1737947447911,-1143.83,0.00017122,2]
[350528733,1737947447921,-500.0,0.00017122,2]
[350528734,1737947447931,-198.52676848,0.00017122,2]
[350528735,1737947447940,-500.0,0.00017122,2]
[350528736,1737947447950,-500.0,0.00017122,2]
[350528737,1737947447960,-500.0,0.00017122,2]
[350528738,1737947447970,-500.0,0.00017122,2]
[350528739,1737947447980,-500.0,0.00017122,2]
[350528740,1737947447990,-1999.94,0.00017122,2]
[350528741,1737947448000,-500.0,0.00017122,2]
[350528742,1737947448010,-500.0,0.00017122,2]
[350528743,1737947448019,-500.0,0.00017122,2]
[350528744,1737947448029,-500.0,0.00017122,2]
[350528745,1737947448043,-151.0,0.00017122,2]
[350528746,1737947448053,-500.0,0.00017122,2]
[350528747,1737947448065,-500.0,0.00017122,2]
[350528748,1737947448076,-500.0,0.00017122,2]
[350528749,1737947448086,-500.0,0.00017123,2]
[350528750,1737947448096,-500.0,0.00017258,2]
[350528751,1737947448105,-610.48534217,0.00017258,2]
[350528752,1737947448116,-2180.64,0.00017258,2]
[350528753,1737947448127,-500.0,0.00017258,2]
[350528754,1737947448136,-3924.75,0.00017258,2]
[350528755,1737947448147,-500.0,0.00017258,2]
[350528756,1737947448156,-1329.05,0.00017258,2]
[350528757,1737947448166,-500.0,0.00017258,2]
[350528758,1737947448175,-1736.73,0.00017258,2]
[350528759,1737947448185,-797.26,0.00017258,2]
[350528760,1737947448195,-188.857249,0.00017258,2]
[350528761,1737947448204,-500.0,0.00017258,2]
[350528762,1737947448214,-661.82,0.00017258,2]
[350528763,1737947448223,-500.0,0.00017258,2]
[350528764,1737947448233,-500.0,0.00017258,2]
[350528765,1737947448242,-500.0,0.00017258,2]
[350528766,1737947448251,-500.0,0.00017258,2]
[350528767,1737947448262,-500.0,0.00017258,2]
[350528768,1737947448272,-981.88,0.00017258,2]
[350528769,1737947448282,-590.92,0.00017258,2]
[350528770,1737947448293,-1770.45,0.00017258,2]
[350528771,1737947448303,-715.93,0.00017258,2]
[350528772,1737947448312,-500.0,0.00017258,2]
[350528773,1737947448322,-1597.97,0.00017258,2]
[350528774,1737947448331,-916.29,0.00017258,2]
[350528775,1737947448341,-3038.11,0.00017258,2]
[350528776,1737947448351,-500.0,0.00017258,2]
[350528777,1737947448360,-500.0,0.00017258,2]
[350528778,1737947448370,-1034.33,0.00017258,2]
[350528779,1737947448379,-500.0,0.00017258,2]
[350528780,1737947448391,-508.07513409,0.00017258,2]
[350528781,1737947448403,-500.0,0.00017258,2]
[350528782,1737947448414,-595.18,0.00017258,2]
[350528783,1737947448424,-500.0,0.00017258,2]
[350528784,1737947448437,-1644.73,0.00017258,2]
[350528785,1737947448446,-500.0,0.00017259,2]
[350528786,1737947448456,-500.0,0.00017259,2]
[350528787,1737947448465,-500.0,0.00017259,2]
[350528788,1737947448475,-500.0,0.00017259,2]
[350528789,1737947448484,-500.0,0.00017259,2]
[350528790,1737947448493,-500.0,0.00017259,2]
[350528791,1737947448503,-500.0,0.00017259,2]
[350528792,1737947448514,-500.0,0.00017259,2]
[350528793,1737947448524,-500.0,0.00017259,2]
[350528794,1737947448534,-500.0,0.00017259,2]
[350528795,1737947448544,-500.0,0.00017259,2]
[350528796,1737947448555,-500.0,0.00017259,2]
[350528797,1737947448565,-500.0,0.00017259,2]
[350528798,1737947448657,-500.0,0.00017259,2]
[350528799,1737947448668,-500.0,0.00017259,2]
[350528800,1737947448678,-500.0,0.00017259,2]
[350528801,1737947448688,-500.0,0.00017259,2]
[350528802,1737947448698,-500.0,0.00017259,2]
[350528803,1737947448708,-200.0,0.00017259,2]
[350528804,1737947448718,-520.38200952,0.00017259,2]
[350528805,1737947448728,-500.0,0.00017259,2]
[350528806,1737947448738,-500.0,0.00017259,2]
[350528807,1737947448748,-500.0,0.00017259,2]
[350528808,1737947448757,-500.0,0.00017259,2]
[350528809,1737947448767,-500.0,0.00017259,2]
[350528810,1737947448777,-500.0,0.00017259,2]
[350528811,1737947448786,-500.0,0.00017259,2]
[350528812,1737947448795,-500.0,0.00017259,2]
[350528813,1737947448805,-500.0,0.00017259,2]
[350528814,1737947448815,-500.0,0.00017259,2]
[350528815,1737947448824,-500.0,0.00017259,2]
[350528816,1737947448833,-500.0,0.00017259,2]
[350528817,1737947448843,-500.0,0.00017259,2]
[350528818,1737947448853,-500.0,0.00017259,2]
[350528819,1737947448863,-500.0,0.00017259,2]
[350528820,1737947448872,-500.0,0.00017259,2]
[350528821,1737947448882,-500.0,0.00017259,2]
[350528822,1737947448893,-500.0,0.00017259,2]
[350528823,1737947448906,-172.93,0.00017259,2]
[350528824,1737947448916,-500.0,0.00017259,2]
[350528825,1737947448926,-500.0,0.00017259,2]
[350528826,1737947448935,-500.0,0.00017259,2]
[350528827,1737947448946,-500.0,0.00017259,2]
[350528828,1737947448955,-500.0,0.00017259,2]
[350528829,1737947448972,-500.0,0.00017259,2]
[350528830,1737947448981,-500.0,0.00017259,2]
[350528831,1737947448991,-500.0,0.00017259,2]
[350528832,1737947449000,-500.0,0.00017259,2]
[350528833,1737947449011,-500.0,0.00017259,2]
[350528834,1737947449021,-500.0,0.00017259,2]
[350528835,1737947449031,-500.0,0.00017259,2]
[350528836,1737947449044,-500.0,0.00017259,2]
[350528837,1737947449054,-500.0,0.00017259,2]
[350528838,1737947449064,-640.53785926,0.00017259,2]
[350528839,1737947449074,-500.0,0.00017259,2]
[350528840,1737947449086,-510.08104898,0.00017259,2]
[350528841,1737947449096,-500.0,0.00017259,2]
[350528842,1737947449108,-403.26758279,0.00017259,2]
[350528843,1737947449127,-560.58509163,0.00017259,2]
[350528844,1737947449137,-526.53405721,0.00017259,2]
[350528845,1737947449148,-500.0,0.00017259,2]
[350528846,1737947449158,-500.0,0.00017259,2]
[350528847,1737947449168,-500.0,0.00017259,2]
[350528848,1737947449177,-500.0,0.00017259,2]
[350528849,1737947449187,-500.0,0.00017259,2]
[350528850,1737947449196,-978.78,0.00017259,2]
[350528851,1737947449206,-743.63,0.00017259,2]
[350528852,1737947449216,-500.0,0.00017259,2]
[350528853,1737947449226,-500.0,0.00017259,2]
[350528854,1737947449236,-468.25779566,0.00017259,2]
[350528855,1737947449245,-581.3,0.00017259,2]
[350528856,1737947449254,-500.0,0.00017259,2]
[350528857,1737947449264,-500.0,0.00017259,2]
[350528858,1737947449274,-515.40166202,0.00017259,2]
[350528859,1737947449284,-500.0,0.00017259,2]
[350528860,1737947449295,-500.0,0.00017259,2]
[350528861,1737947449305,-500.0,0.00017259,2]
[350528862,1737947449314,-500.0,0.00017259,2]
[350528863,1737947449324,-500.0,0.00017259,2]
[350528864,1737947449334,-500.0,0.00017259,2]
[350528865,1737947449344,-4061.49,0.00017259,2]
[350528866,1737947449354,-500.0,0.00017259,2]
[350528867,1737947449363,-500.0,0.00017259,2]
[350528868,1737947449373,-500.0,0.00017259,2]
[350528869,1737947449383,-591.07,0.00017259,2]
[350528870,1737947449404,-500.0,0.00017259,2]
[350528871,1737947449422,-503.35735825,0.00017259,2]
[350528872,1737947449436,-500.0,0.00017259,2]
[350528873,1737947449454,-500.0,0.00017259,2]
[350528874,1737947449473,-500.0,0.00017259,2]
[350528875,1737947449492,-500.0,0.00017259,2]
[350528876,1737947449509,-500.0,0.00017259,2]
[350528877,1737947449526,-500.0,0.00017259,2]
[350528878,1737947449541,-500.0,0.00017259,2]
[350528879,1737947449558,-500.0,0.00017259,2]
[350528880,1737947449573,-500.0,0.00017259,2]
[350528881,1737947449588,-3976.97,0.00017259,2]
[350528882,1737947449605,-500.0,0.00017259,2]
[350528883,1737947449621,-500.0,0.00017259,2]
[350528884,1737947449639,-500.0,0.00017259,2]
[350528885,1737947449658,-558.60390636,0.00017259,2]
[350528886,1737947449671,-180.74072774,0.00017259,2]
[350528887,1737947449683,-1143.83,0.00017259,2]
[350528888,1737947449701,-500.0,0.00017259,2]
[350528889,1737947449716,-500.0,0.00017259,2]
[350528890,1737947449729,-500.0,0.00017259,2]
[350528891,1737947449743,-500.0,0.00017259,2]
[350528892,1737947449756,-500.0,0.00017259,2]
[350528893,1737947449769,-500.0,0.00017259,2]
[350528894,1737947449782,-1999.94,0.00017259,2]
[350528895,1737947449795,-500.0,0.00017259,2]
[350528896,1737947449808,-500.0,0.00017259,2]
[350528897,1737947449821,-500.0,0.00017259,2]
[350528898,1737947449834,-500.0,0.00017259,2]
[350528899,1737947449848,-500.0,0.00017259,2]
[350528900,1737947449861,-500.0,0.00017259,2]
[350528901,1737947449874,-634.88694759,0.00017314,2]
[350528902,1737947449887,-500.0,0.00017395,2]
[350528903,1737947449902,-2180.64,0.00017395,2]
[350528904,1737947449916,-500.0,0.00017395,2]
[350528905,1737947449929,-3924.75,0.00017395,2]
[350528906,1737947449941,-500.0,0.00017395,2]
[350528907,1737947449955,-1329.05,0.00017395,2]
[350528908,1737947449969,-505.77056602,0.00017395,2]
[350528909,1737947449981,-1736.73,0.00017395,2]
[350528910,1737947449995,-797.26,0.00017395,2]
[350528911,1737947450008,-500.0,0.00017395,2]
[350528912,1737947450020,-661.82,0.00017395,2]
[350528913,1737947450034,-500.0,0.00017395,2]
[350528914,1737947450049,-500.0,0.00017395,2]
[350528915,1737947450063,-500.0,0.00017395,2]
[350528916,1737947450075,-500.0,0.00017395,2]
[350528917,1737947450090,-500.0,0.00017395,2]
[350528918,1737947450104,-981.88,0.00017395,2]
[350528919,1737947450119,-590.92,0.00017395,2]
[350528920,1737947450132,-1770.45,0.00017395,2]
[350528921,1737947450144,-715.93,0.00017395,2]
[350528922,1737947450158,-500.0,0.00017395,2]
[350528923,1737947450171,-1597.97,0.00017395,2]
[350528924,1737947450184,-916.29,0.00017395,2]
[350528925,1737947450197,-3038.11,0.00017395,2]
[350528926,1737947450210,-500.0,0.00017395,2]
[350528927,1737947450223,-500.0,0.00017395,2]
[350528928,1737947450236,-1034.33,0.00017395,2]
[350528929,1737947450248,-500.0,0.00017395,2]
[350528930,1737947450261,-500.0,0.00017395,2]
[350528931,1737947450273,-595.18,0.00017395,2]
[350528932,1737947450287,-500.0,0.00017395,2]
[350528933,1737947450299,-1644.73,0.00017395,2]
[350528934,1737947450312,-500.0,0.00017396,2]
[350528935,1737947450326,-336.72655741,0.00017396,2]
[350528936,1737947450336,-500.0,0.00017396,2]
[350528937,1737947450346,-500.0,0.00017396,2]
[350528938,1737947450356,-500.0,0.00017396,2]
[350528939,1737947450366,-500.0,0.00017396,2]
[350528940,1737947450377,-256.2492348,0.00017396,2]
[350528941,1737947450532,-500.0,0.00017396,2]
[350528942,1737947450543,-500.0,0.00017396,2]
[350528943,1737947450553,-500.0,0.00017396,2]
[350528944,1737947450563,-500.0,0.00017396,2]
[350528945,1737947450573,-500.0,0.00017396,2]
[350528946,1737947450583,-500.0,0.00017396,2]
[350528947,1737947450593,-638.71,0.00017396,2]
[350528948,1737947450602,-500.0,0.00017396,2]
[350528949,1737947450611,-500.0,0.00017396,2]
[350528950,1737947450621,-305.8435059,0.00017396,2]
[350528951,1737947450630,-500.0,0.00017396,2]
[350528952,1737947450639,-500.0,0.00017396,2]
[350528953,1737947450651,-500.0,0.00017396,2]
[350528954,1737947450660,-500.0,0.00017396,2]
[350528955,1737947450670,-500.0,0.00017396,2]
[350528956,1737947450679,-510.74572264,0.00017396,2]
[350528957,1737947450689,-500.0,0.00017396,2]
[350528958,1737947450698,-500.0,0.00017396,2]
[350528959,1737947450708,-500.0,0.00017396,2]
[350528960,1737947450718,-507.97129943,0.00017396,2]
[350528961,1737947450728,-170.47,0.00017396,2]
[350528962,1737947450737,-500.0,0.00017396,2]
[350528963,1737947450747,-500.0,0.00017396,2]
[350528964,1737947450756,-221.11,0.00017396,2]
[350528965,1737947450766,-500.0,0.00017396,2]
[350528966,1737947450775,-500.0,0.00017396,2]
[350528967,1737947450784,-500.0,0.00017396,2]
[350528968,1737947450794,-500.0,0.00017396,2]
[350528969,1737947450803,-500.0,0.00017396,2]
[350528970,1737947450812,-511.91915182,0.00017396,2]
[350528971,1737947450821,-500.0,0.00017396,2]
[350528972,1737947450830,-500.0,0.00017396,2]
[350528973,1737947450840,-500.0,0.00017396,2]
[350528974,1737947450849,-500.0,0.00017396,2]
[350528975,1737947450859,-500.0,0.00017396,2]
[350528976,1737947450868,-500.0,0.00017396,2]
[350528977,1737947450877,-500.0,0.00017396,2]
[350528978,1737947450886,-547.62,0.00017396,2]
[350528979,1737947450896,-500.0,0.00017396,2]
[350528980,1737947450908,-500.0,0.00017396,2]
[350528981,1737947450918,-310.70834285,0.00017396,2]
[350528982,1737947450927,-505.35425765,0.00017396,2]
[350528983,1737947450937,-500.0,0.00017396,2]
[350528984,1737947450946,-500.0,0.00017396,2]
[350528985,1737947450956,-500.0,0.00017396,2]
[350528986,1737947450965,-374.08474366,0.00017396,2]
[350528987,1737947450975,-978.78,0.00017396,2]
[350528988,1737947450984,-743.63,0.00017396,2]
[350528989,1737947450994,-500.0,0.00017396,2]
[350528990,1737947451004,-303.4785247,0.00017396,2]
[350528991,1737947451013,-581.3,0.00017396,2]
[350528992,1737947451023,-500.0,0.00017396,2]
[350528993,1737947451033,-500.0,0.00017396,2]
[350528994,1737947451045,-500.0,0.00017396,2]
[350528995,1737947451055,-500.0,0.00017396,2]
[350528996,1737947451065,-500.0,0.00017396,2]
[350528997,1737947451074,-500.0,0.00017396,2]
[350528998,1737947451083,-500.0,0.00017396,2]
[350528999,1737947451094,-4061.49,0.00017396,2]
[350529000,1737947451103,-500.0,0.00017396,2]
[350529001,1737947451113,-500.0,0.00017396,2]
[350529002,1737947451124,-500.0,0.00017396,2]
[350529003,1737947451134,-591.07,0.00017396,2]
[350529004,1737947451143,-500.0,0.00017396,2]
[350529005,1737947451154,-500.0,0.00017396,2]
[350529006,1737947451165,-500.0,0.00017396,2]
[350529007,1737947451175,-500.0,0.00017396,2]
[350529008,1737947451184,-500.0,0.00017396,2]
[350529009,1737947451193,-500.0,0.00017396,2]
[350529010,1737947451202,-262.67748919,0.00017396,2]
[350529011,1737947451211,-500.0,0.00017396,2]
[350529012,1737947451221,-500.0,0.00017396,2]
[350529013,1737947451230,-3976.97,0.00017396,2]
[350529014,1737947451239,-494.46642385,0.00017396,2]
[350529015,1737947451248,-500.0,0.00017396,2]
[350529016,1737947451257,-500.0,0.00017396,2]
[350529017,1737947451266,-1143.83,0.00017396,2]
[350529018,1737947451275,-1032.570398,0.00017396,2]
[350529019,1737947451285,-500.0,0.00017396,2]
[350529020,1737947451294,-500.0,0.00017396,2]
[350529021,1737947451303,-500.0,0.00017396,2]
[350529022,1737947451313,-1032.570398,0.00017396,2]
[350529023,1737947451321,-500.0,0.00017396,2]
[350529024,1737947451331,-500.0,0.00017396,2]
[350529025,1737947451341,-151.0,0.00017396,2]
[350529026,1737947451350,-1999.94,0.00017396,2]
[350529027,1737947451360,-500.0,0.00017396,2]
[350529028,1737947451369,-500.0,0.00017396,2]
[350529029,1737947451379,-151.0,0.00017396,2]
[350529030,1737947451388,-500.0,0.00017396,2]
[350529031,1737947451398,-500.0,0.00017396,2]
[350529032,1737947451408,-151.0,0.00017396,2]
[350529033,1737947451418,-500.0,0.00017396,2]
[350529034,1737947451428,-452.66761971,0.00017396,2]
[350529035,1737947451438,-634.88694759,0.00017521,2]
[350529036,1737947451448,-516.814095,0.00017521,2]
[350529037,1737947451458,-516.814095,0.00017521,2]
[350529038,1737947451468,-151.0,0.00017521,2]
[350529039,1737947451478,-500.0,0.00017532,2]
[350529040,1737947451487,-2180.64,0.00017532,2]
[350529041,1737947451496,-500.0,0.00017532,2]
[350529042,1737947451506,-3924.75,0.00017532,2]
[350529043,1737947451515,-500.0,0.00017532,2]
[350529044,1737947451526,-1329.05,0.00017532,2]
[350529045,1737947451535,-1736.73,0.00017532,2]
[350529046,1737947451545,-797.26,0.00017532,2]
[350529047,1737947451554,-500.0,0.00017532,2]
[350529048,1737947451563,-661.82,0.00017532,2]
[350529049,1737947451572,-500.0,0.00017532,2]
[350529050,1737947451581,-500.0,0.00017532,2]
[350529051,1737947451591,-500.0,0.00017532,2]
[350529052,1737947451600,-506.48586169,0.00017532,2]
[350529053,1737947451610,-500.0,0.00017532,2]
[350529054,1737947451619,-981.88,0.00017532,2]
[350529055,1737947451629,-590.92,0.00017532,2]
[350529056,1737947451638,-1770.45,0.00017532,2]
[350529057,1737947451648,-715.93,0.00017532,2]
[350529058,1737947451657,-500.0,0.00017532,2]
[350529059,1737947451666,-1597.97,0.00017532,2]
[350529060,1737947451676,-916.29,0.00017532,2]
[350529061,1737947451686,-3038.11,0.00017532,2]
[350529062,1737947451695,-500.0,0.00017532,2]
[350529063,1737947451705,-500.0,0.00017532,2]
[350529064,1737947451715,-1034.33,0.00017532,2]
[350529065,1737947451724,-507.64168184,0.00017532,2]
[350529066,1737947451734,-500.0,0.00017532,2]
[350529067,1737947451744,-595.18,0.00017532,2]
[350529068,1737947451753,-500.0,0.00017532,2]
[350529069,1737947451762,-1644.73,0.00017532,2]
[350529070,1737947451771,-500.0,0.00017533,2]
[350529071,1737947451781,-500.0,0.00017533,2]
[350529072,1737947451790,-500.0,0.00017533,2]
[350529073,1737947451799,-500.0,0.00017533,2]
[350529074,1737947451808,-500.0,0.00017533,2]
[350529075,1737947451817,-500.0,0.00017533,2]
[350529076,1737947451827,-500.0,0.00017533,2]
[350529077,1737947451836,-500.0,0.00017533,2]
[350529078,1737947451846,-500.0,0.00017533,2]
[350529079,1737947451855,-500.0,0.00017533,2]
[350529080,1737947451864,-500.0,0.00017533,2]
[350529081,1737947451874,-500.0,0.00017533,2]
[350529082,1737947451883,-500.0,0.00017533,2]
[350529083,1737947451892,-500.0,0.00017533,2]
[350529084,1737947451903,-500.0,0.00017533,2]
[350529085,1737947451912,-500.91,0.00017533,2]
[350529086,1737947451921,-509.62948869,0.00017533,2]
[350529087,1737947451931,-611.04,0.00017533,2]
[350529088,1737947451940,-500.0,0.00017533,2]
[350529089,1737947451949,-500.0,0.00017533,2]
[350529090,1737947451958,-500.0,0.00017533,2]
[350529091,1737947451968,-500.0,0.00017533,2]
[350529092,1737947451977,-500.0,0.00017533,2]
[350529093,1737947451987,-500.0,0.00017533,2]
[350529094,1737947451996,-500.0,0.00017533,2]
[350529095,1737947452004,-500.0,0.00017533,2]
[350529096,1737947452013,-500.0,0.00017533,2]
[350529097,1737947452023,-500.0,0.00017533,2]
[350529098,1737947452032,-246.29,0.00017533,2]
[350529099,1737947452042,-500.0,0.00017533,2]
[350529100,1737947452051,-500.0,0.00017533,2]
[350529101,1737947452060,-500.0,0.00017533,2]
[350529102,1737947452070,-500.0,0.00017533,2]
[350529103,1737947452079,-500.0,0.00017533,2]
[350529104,1737947452089,-500.0,0.00017533,2]
[350529105,1737947452099,-500.0,0.00017533,2]
[350529106,1737947452108,-500.0,0.00017533,2]
[350529107,1737947452117,-500.0,0.00017533,2]
[350529108,1737947452127,-978.78,0.00017533,2]
[350529109,1737947452136,-743.63,0.00017533,2]
[350529110,1737947452146,-581.3,0.00017533,2]
[350529111,1737947452155,-500.0,0.00017533,2]
[350529112,1737947452165,-500.0,0.00017533,2]
[350529113,1737947452174,-500.0,0.00017533,2]
[350529114,1737947452183,-500.0,0.00017533,2]
[350529115,1737947452193,-500.0,0.00017533,2]
[350529116,1737947452203,-505.44469058,0.00017533,2]
[350529117,1737947452212,-4061.49,0.00017533,2]
[350529118,1737947452221,-500.0,0.00017533,2]
[350529119,1737947452230,-500.0,0.00017533,2]
[350529120,1737947452240,-505.05748134,0.00017533,2]
[350529121,1737947452249,-591.07,0.00017533,2]
[350529122,1737947452258,-500.0,0.00017533,2]
[350529123,1737947452268,-500.0,0.00017533,2]
[350529124,1737947452278,-500.0,0.00017533,2]
[350529125,1737947452288,-506.25817034,0.00017533,2]
[350529126,1737947452297,-500.0,0.00017533,2]
[350529127,1737947452307,-500.0,0.00017533,2]
[350529128,1737947452317,-3976.97,0.00017533,2]
[350529129,1737947452327,-636.3975098,0.00017533,2]
[350529130,1737947452338,-334.59,0.00017533,2]
[350529131,1737947452348,-1143.83,0.00017533,2]
[350529132,1737947452358,-506.79103997,0.00017533,2]
[350529133,1737947452368,-500.0,0.00017533,2]
[350529134,1737947452378,-500.0,0.00017533,2]
[350529135,1737947452388,-500.0,0.00017533,2]
[350529136,1737947452398,-1999.94,0.00017533,2]
[350529137,1737947452408,-500.0,0.00017533,2]
[350529138,1737947452417,-500.0,0.00017669,2]
[350529139,1737947452427,-2180.64,0.00017669,2]
[350529140,1737947452437,-500.0,0.00017669,2]
[350529141,1737947452447,-3924.75,0.00017669,2]
[350529142,1737947452456,-1329.05,0.00017669,2]
[350529143,1737947452466,-1736.73,0.00017669,2]
[350529144,1737947452475,-797.26,0.00017669,2]
[350529145,1737947452484,-500.0,0.00017669,2]
[350529146,1737947452494,-661.82,0.00017669,2]
[350529147,1737947452503,-500.0,0.00017669,2]
[350529148,1737947452514,-500.0,0.00017669,2]
[350529149,1737947452523,-500.0,0.00017669,2]
[350529150,1737947452534,-981.88,0.00017669,2]
[350529151,1737947452544,-590.92,0.00017669,2]
[350529152,1737947452554,-1770.45,0.00017669,2]
[350529153,1737947452564,-715.93,0.00017669,2]
[350529154,1737947452574,-500.0,0.00017669,2]
[350529155,1737947452584,-1597.97,0.00017669,2]
[350529156,1737947452593,-916.29,0.00017669,2]
[350529157,1737947452603,-3038.11,0.00017669,2]
[350529158,1737947452613,-500.0,0.00017669,2]
[350529159,1737947452623,-506.43764973,0.00017669,2]
[350529160,1737947452634,-1034.33,0.00017669,2]
[350529161,1737947452643,-500.0,0.00017669,2]
[350529162,1737947452654,-595.18,0.00017669,2]
[350529163,1737947452664,-500.0,0.00017669,2]
[350529164,1737947452674,-1644.73,0.00017669,2]
[350529165,1737947452776,-500.0,0.0001767,2]
[350529166,1737947452785,-500.0,0.0001767,2]
[350529167,1737947452795,-482.67531648,0.0001767,2]
[350529168,1737947452805,-500.0,0.0001767,2]
[350529169,1737947452815,-285.93,0.0001767,2]
[350529170,1737947452824,-500.0,0.0001767,2]
[350529171,1737947452834,-319.86,0.0001767,2]
[350529172,1737947452844,-500.0,0.0001767,2]
[350529173,1737947452853,-500.0,0.0001767,2]
[350529174,1737947452862,-500.0,0.0001767,2]
[350529175,1737947452872,-500.0,0.0001767,2]
[350529176,1737947452881,-500.0,0.0001767,2]
[350529177,1737947452890,-500.0,0.0001767,2]
[350529178,1737947452899,-248.93,0.0001767,2]
[350529179,1737947452908,-500.0,0.0001767,2]
[350529180,1737947452918,-330.02246307,0.0001767,2]
[350529181,1737947452927,-500.0,0.0001767,2]
[350529182,1737947452936,-500.0,0.0001767,2]
[350529183,1737947452946,-500.0,0.0001767,2]
[350529184,1737947452955,-500.0,0.0001767,2]
[350529185,1737947452964,-500.0,0.0001767,2]
[350529186,1737947452974,-500.0,0.0001767,2]
[350529187,1737947452983,-500.0,0.0001767,2]
[350529188,1737947452992,-500.0,0.0001767,2]
[350529189,1737947453001,-500.0,0.0001767,2]
[350529190,1737947453010,-500.0,0.0001767,2]
[350529191,1737947453019,-500.0,0.0001767,2]
[350529192,1737947453028,-500.0,0.0001767,2]
[350529193,1737947453038,-500.0,0.0001767,2]
[350529194,1737947453051,-446.25958705,0.0001767,2]
[350529195,1737947453060,-500.0,0.0001767,2]
[350529196,1737947453070,-500.0,0.0001767,2]
[350529197,1737947453079,-500.0,0.0001767,2]
[350529198,1737947453089,-500.0,0.0001767,2]
[350529199,1737947453099,-978.78,0.0001767,2]
[350529200,1737947453108,-743.63,0.0001767,2]
[350529201,1737947453117,-581.3,0.0001767,2]
[350529202,1737947453128,-500.0,0.0001767,2]
[350529203,1737947453138,-500.0,0.0001767,2]
[350529204,1737947453148,-500.0,0.0001767,2]
[350529205,1737947453157,-500.0,0.0001767,2]
[350529206,1737947453167,-500.0,0.0001767,2]
[350529207,1737947453176,-151.0,0.0001767,2]
[350529208,1737947453185,-4061.49,0.0001767,2]
[350529209,1737947453195,-158.760725,0.0001767,2]
[350529210,1737947453204,-151.0,0.0001767,2]
[350529211,1737947453214,-500.0,0.0001767,2]
[350529212,1737947453223,-241.09896188,0.0001767,2]
[350529213,1737947453232,-591.07,0.0001767,2]
[350529214,1737947453241,-507.26777117,0.0001767,2]
[350529215,1737947453250,-500.0,0.0001767,2]
[350529216,1737947453260,-500.0,0.0001767,2]